[Event "Late-Titled-Tuesday-Blitz-October-03-2023"]
[Site "Chess.com"]
[Date "2023.10.03"]
[Round "1"]
[White "microbear"]
[Black "FoxOnTheRun97"]
[Result "0-1"]
[WhiteElo "2186"]
[BlackElo "2547"]
[TimeControl "180+1"]
[EndTime "14:08:33 PDT"]
[Termination "FoxOnTheRun97 won by resignation"]

1. e4 {[%clk 0:02:54.9]} 1... c6 {[%clk 0:03:00.4]} 2. d4 {[%clk 0:02:54.2]}
2... d5 {[%clk 0:03:00.8]} 3. exd5 {[%clk 0:02:52.2]} 3... cxd5 {[%clk
0:03:01.7]} 4. Nf3 {[%clk 0:02:47.8]} 4... Nc6 {[%clk 0:03:02.1]} 5. h3 {[%clk
0:02:45.2]} 5... Bf5 {[%clk 0:03:01.5]} 6. c3 {[%clk 0:02:45]} 6... e6 {[%clk
0:03:01.1]} 7. Bd3 {[%clk 0:02:44.8]} 7... Bg6 {[%clk 0:02:57.7]} 8. O-O {[%clk
0:02:42.8]} 8... Nf6 {[%clk 0:02:56.5]} 9. Bg5 {[%clk 0:02:22.5]} 9... Be7
{[%clk 0:02:55.7]} 10. Bxf6 {[%clk 0:02:15.7]} 10... Bxf6 {[%clk 0:02:55]} 11.
Bxg6 {[%clk 0:02:15.8]} 11... hxg6 {[%clk 0:02:55]} 12. Nbd2 {[%clk 0:02:16.5]}
12... Qc7 {[%clk 0:02:49.1]} 13. Rc1 {[%clk 0:02:08.9]} 13... g5 {[%clk
0:02:46.1]} 14. c4 {[%clk 0:02:04.3]} 14... dxc4 {[%clk 0:02:29.2]} 15. Nxc4
{[%clk 0:02:02.6]} 15... Rd8 {[%clk 0:02:27.3]} 16. Ne3 {[%clk 0:01:28.6]} 16...
Qd6 {[%clk 0:01:58.1]} 17. d5 {[%clk 0:00:45]} 17... exd5 {[%clk 0:01:53.4]} 18.
Nf5 {[%clk 0:00:42.3]} 18... Qb8 {[%clk 0:01:40.8]} 19. Re1+ {[%clk 0:00:40]}
19... Kf8 {[%clk 0:01:38.3]} 20. Qd2 {[%clk 0:00:19]} 20... Qf4 {[%clk
0:01:29.7]} 21. Qxf4 {[%clk 0:00:15.5]} 21... gxf4 {[%clk 0:01:30.6]} 22. Red1
{[%clk 0:00:13.6]} 22... g6 {[%clk 0:01:28]} 23. N5d4 {[%clk 0:00:12.4]} 23...
Nxd4 {[%clk 0:01:27.7]} 24. Nxd4 {[%clk 0:00:13.3]} 24... Kg7 {[%clk 0:01:16.4]}
25. Rc7 {[%clk 0:00:13]} 25... Rb8 {[%clk 0:00:51.1]} 26. b3 {[%clk 0:00:12.8]}
26... Rhc8 {[%clk 0:00:46.3]} 27. Ne6+ {[%clk 0:00:08.3]} 27... Kg8 {[%clk
0:00:45.8]} 28. Rxc8+ {[%clk 0:00:08.2]} 28... Rxc8 {[%clk 0:00:45.8]} 29. Nxf4
{[%clk 0:00:09.1]} 29... d4 {[%clk 0:00:43.1]} 30. Nd5 {[%clk 0:00:08.8]} 30...
Kg7 {[%clk 0:00:25.9]} 31. Nxf6 {[%clk 0:00:08.1]} 31... Kxf6 {[%clk 0:00:26.8]}
32. Rxd4 {[%clk 0:00:08.5]} 32... Rc1+ {[%clk 0:00:27.5]} 33. Kh2 {[%clk
0:00:08.6]} 33... Rc2 {[%clk 0:00:28.1]} 34. Ra4 {[%clk 0:00:07.6]} 34... a6
{[%clk 0:00:26.6]} 35. Kg3 {[%clk 0:00:08.1]} 35... Kg5 {[%clk 0:00:25.2]} 36.
Ra5+ {[%clk 0:00:07.8]} 36... f5 {[%clk 0:00:25.2]} 37. a4 {[%clk 0:00:05.9]}
37... Rc3+ {[%clk 0:00:24.4]} 38. f3 {[%clk 0:00:06.2]} 38... Rxb3 {[%clk
0:00:24.6]} 39. h4+ {[%clk 0:00:06.6]} 39... Kf6 {[%clk 0:00:23.6]} 40. Rd5
{[%clk 0:00:06.9]} 40... Rb4 {[%clk 0:00:22.9]} 41. Rd6+ {[%clk 0:00:07.3]}
41... Kf7 {[%clk 0:00:21]} 42. a5 {[%clk 0:00:06.8]} 42... Rb5 {[%clk
0:00:20.3]} 43. Rd7+ {[%clk 0:00:06.6]} 43... Kf6 {[%clk 0:00:20.2]} 44. Rd6+
{[%clk 0:00:07.1]} 44... Kg7 {[%clk 0:00:20.2]} 45. Rd7+ {[%clk 0:00:07.5]}
45... Kh6 {[%clk 0:00:20.2]} 46. Re7 {[%clk 0:00:07.4]} 46... Rxa5 {[%clk
0:00:18.9]} 47. Rxb7 {[%clk 0:00:07.4]} 47... Ra1 {[%clk 0:00:19.2]} 48. Ra7
{[%clk 0:00:07]} 48... a5 {[%clk 0:00:18.8]} 49. Kf4 {[%clk 0:00:07.6]} 49...
Ra4+ {[%clk 0:00:17.6]} 50. Kg3 {[%clk 0:00:07.4]} 50... Ra2 {[%clk 0:00:17.5]}
51. Kh3 {[%clk 0:00:07.2]} 51... f4 {[%clk 0:00:11.6]} 52. Kg4 {[%clk
0:00:05.9]} 52... Rxg2+ {[%clk 0:00:11.6]} 53. Kxf4 {[%clk 0:00:06.4]} 53... Ra2
{[%clk 0:00:12.1]} 54. Ra6 {[%clk 0:00:06.6]} 54... Kh5 {[%clk 0:00:10.2]} 55.
Ra8 {[%clk 0:00:05.5]} 55... Ra4+ {[%clk 0:00:06.6]} 56. Ke5 {[%clk 0:00:05.1]}
56... Kxh4 {[%clk 0:00:05.9]} 57. Kf6 {[%clk 0:00:05.6]} 57... Kg3 {[%clk
0:00:05.1]} 58. Ke5 {[%clk 0:00:04.8]} 58... Kxf3 {[%clk 0:00:04.8]} 59. Kd5
{[%clk 0:00:05.4]} 59... g5 {[%clk 0:00:04.7]} 60. Kc5 {[%clk 0:00:05.1]} 60...
g4 {[%clk 0:00:05]} 61. Kb5 {[%clk 0:00:05.5]} 61... Ra1 {[%clk 0:00:05.6]} 62.
Rf8+ {[%clk 0:00:06.2]} 62... Kg2 {[%clk 0:00:05.8]} 63. Kc4 {[%clk 0:00:06.5]}
63... g3 {[%clk 0:00:06.2]} 64. Kb3 {[%clk 0:00:06.9]} 64... Kg1 {[%clk
0:00:06.1]} 65. Kb2 {[%clk 0:00:07.4]} 65... Rf1 {[%clk 0:00:06.2]} 66. Ra8
{[%clk 0:00:06.5]} 66... Rf5 {[%clk 0:00:05.4]} 67. Kc2 {[%clk 0:00:06.2]} 67...
g2 {[%clk 0:00:05.5]} 68. Kd2 {[%clk 0:00:06.7]} 68... Kf2 {[%clk 0:00:05.8]}
0-1

[Event "Late-Titled-Tuesday-Blitz-October-03-2023"]
[Site "Chess.com"]
[Date "2023.10.03"]
[Round "1"]
[White "maracayo"]
[Black "jguerramzllo"]
[Result "1/2-1/2"]
[WhiteElo "2413"]
[BlackElo "2708"]
[TimeControl "180+1"]
[EndTime "14:08:46 PDT"]
[Termination "Game drawn by repetition"]

1. e4 {[%clk 0:03:00.9]} 1... e5 {[%clk 0:02:59.3]} 2. Nf3 {[%clk 0:03:00]} 2...
Nc6 {[%clk 0:02:58.4]} 3. Be2 {[%clk 0:02:56.5]} 3... Nf6 {[%clk 0:02:53.3]} 4.
d3 {[%clk 0:02:55.9]} 4... d5 {[%clk 0:02:40.7]} 5. Nbd2 {[%clk 0:02:55.4]} 5...
Be7 {[%clk 0:02:28.1]} 6. O-O {[%clk 0:02:54.7]} 6... O-O {[%clk 0:02:28.6]} 7.
c3 {[%clk 0:02:53.4]} 7... a5 {[%clk 0:02:26.9]} 8. h3 {[%clk 0:02:50.5]} 8...
Re8 {[%clk 0:02:25.8]} 9. Re1 {[%clk 0:02:50]} 9... Bf8 {[%clk 0:02:25.3]} 10.
Qc2 {[%clk 0:02:49.9]} 10... h6 {[%clk 0:02:22.8]} 11. Bf1 {[%clk 0:02:49.2]}
11... b6 {[%clk 0:02:02.6]} 12. exd5 {[%clk 0:02:44.8]} 12... Nxd5 {[%clk
0:02:02.1]} 13. Nc4 {[%clk 0:02:43.5]} 13... f6 {[%clk 0:01:37.2]} 14. a4 {[%clk
0:01:47.2]} 14... Bf5 {[%clk 0:01:32.5]} 15. Qb3 {[%clk 0:01:43.6]} 15... Kh8
{[%clk 0:01:32.6]} 16. Bd2 {[%clk 0:01:40.9]} 16... Bh7 {[%clk 0:01:28.6]} 17.
Rad1 {[%clk 0:01:40.2]} 17... Qd7 {[%clk 0:01:20.4]} 18. Bc1 {[%clk 0:01:34]}
18... Rad8 {[%clk 0:01:19.6]} 19. Qb5 {[%clk 0:01:18.6]} 19... Nb8 {[%clk
0:01:17.1]} 20. d4 {[%clk 0:01:10]} 20... e4 {[%clk 0:01:05.3]} 21. Qxd7 {[%clk
0:01:07.7]} 21... Nxd7 {[%clk 0:00:59.1]} 22. Nfd2 {[%clk 0:01:05.5]} 22... f5
{[%clk 0:00:52.3]} 23. g3 {[%clk 0:01:02.6]} 23... Re6 {[%clk 0:00:44.7]} 24.
Bg2 {[%clk 0:00:53.3]} 24... Rde8 {[%clk 0:00:44.3]} 25. Nf1 {[%clk 0:00:48.1]}
25... g5 {[%clk 0:00:40.1]} 26. Nce3 {[%clk 0:00:45.8]} 26... c6 {[%clk
0:00:29.2]} 27. Nxd5 {[%clk 0:00:38.9]} 27... cxd5 {[%clk 0:00:29.2]} 28. Ne3
{[%clk 0:00:37.4]} 28... Nf6 {[%clk 0:00:29.7]} 29. c4 {[%clk 0:00:37.2]} 29...
Rd8 {[%clk 0:00:26.8]} 30. cxd5 {[%clk 0:00:33.9]} 30... Nxd5 {[%clk 0:00:27.7]}
31. Nxd5 {[%clk 0:00:33.3]} 31... Rxd5 {[%clk 0:00:28.3]} 32. Re3 {[%clk
0:00:21.8]} 32... Bg7 {[%clk 0:00:26.9]} 33. Rb3 {[%clk 0:00:14.4]} 33... Bxd4
{[%clk 0:00:25.9]} 34. Kf1 {[%clk 0:00:14.9]} 34... Red6 {[%clk 0:00:24.6]} 35.
Be3 {[%clk 0:00:12.6]} 35... Bxe3 {[%clk 0:00:17.5]} 36. Rxd5 {[%clk 0:00:13.5]}
36... Rxd5 {[%clk 0:00:17.9]} 37. fxe3 {[%clk 0:00:13.4]} 37... Rd2 {[%clk
0:00:15.3]} 38. Rxb6 {[%clk 0:00:11.8]} 38... Bg8 {[%clk 0:00:13.8]} 39. Rxh6+
{[%clk 0:00:11.1]} 39... Kg7 {[%clk 0:00:13.6]} 40. Rb6 {[%clk 0:00:09.7]} 40...
Bc4+ {[%clk 0:00:13.5]} 41. Kg1 {[%clk 0:00:10.2]} 41... Rd1+ {[%clk 0:00:12.6]}
42. Kh2 {[%clk 0:00:09.8]} 42... Rd2 {[%clk 0:00:13.2]} 43. Kg1 {[%clk
0:00:10.2]} 43... Be2 {[%clk 0:00:10]} 44. h4 {[%clk 0:00:10.2]} 44... g4 {[%clk
0:00:07.5]} 45. b4 {[%clk 0:00:07.1]} 45... axb4 {[%clk 0:00:05.7]} 46. a5
{[%clk 0:00:07.5]} 46... Ra2 {[%clk 0:00:05.2]} 47. a6 {[%clk 0:00:07]} 47...
Bxa6 {[%clk 0:00:03.8]} 48. Rxb4 {[%clk 0:00:06.8]} 48... Be2 {[%clk 0:00:03.9]}
49. Rb6 {[%clk 0:00:05.7]} 49... Bf3 {[%clk 0:00:03.8]} 50. Bf1 {[%clk 0:00:06]}
50... Ra1 {[%clk 0:00:03.8]} 51. Kf2 {[%clk 0:00:05.5]} 51... Ra2+ {[%clk
0:00:04.3]} 52. Kg1 {[%clk 0:00:06]} 52... Ra3 {[%clk 0:00:05]} 53. Kf2 {[%clk
0:00:06.7]} 53... Rc3 {[%clk 0:00:04.8]} 54. Rb7+ {[%clk 0:00:06.2]} 54... Kg6
{[%clk 0:00:04.3]} 55. Rb6+ {[%clk 0:00:06.8]} 55... Kf7 {[%clk 0:00:04.5]} 56.
Rb7+ {[%clk 0:00:06.9]} 56... Kf6 {[%clk 0:00:04.9]} 57. Rb6+ {[%clk 0:00:06.6]}
57... Ke5 {[%clk 0:00:05.5]} 58. Rb5+ {[%clk 0:00:05.1]} 58... Ke6 {[%clk
0:00:05.7]} 59. Rb6+ {[%clk 0:00:06]} 59... Ke7 {[%clk 0:00:05.7]} 60. h5 {[%clk
0:00:06]} 60... Rc8 {[%clk 0:00:04.8]} 61. h6 {[%clk 0:00:05.7]} 61... Rh8
{[%clk 0:00:04.9]} 62. Bc4 {[%clk 0:00:05.8]} 62... Bd1 {[%clk 0:00:04]} 63. h7
{[%clk 0:00:06]} 63... Ba4 {[%clk 0:00:03.3]} 64. Rb7+ {[%clk 0:00:06]} 64...
Kf6 {[%clk 0:00:03.3]} 65. Bg8 {[%clk 0:00:06]} 65... Be8 {[%clk 0:00:03.2]} 66.
Ke1 {[%clk 0:00:06]} 66... Bg6 {[%clk 0:00:03.3]} 67. Rb6+ {[%clk 0:00:06.2]}
67... Kg5 {[%clk 0:00:03.2]} 68. Rb7 {[%clk 0:00:05.7]} 68... Kh6 {[%clk
0:00:03.6]} 69. Rb6 {[%clk 0:00:04.8]} 69... Kg7 {[%clk 0:00:03.7]} 70. Rb7+
{[%clk 0:00:05.1]} 70... Kh6 {[%clk 0:00:04.3]} 71. Rb6 {[%clk 0:00:05.5]} 71...
Kg7 {[%clk 0:00:04.9]} 72. Rb7+ {[%clk 0:00:05.9]} 72... Kh6 {[%clk 0:00:05.2]}
1/2-1/2

[Event "Late-Titled-Tuesday-Blitz-October-03-2023"]
[Site "Chess.com"]
[Date "2023.10.03"]
[Round "1"]
[White "Elsa167"]
[Black "as9killer2"]
[Result "0-1"]
[WhiteElo "2885"]
[BlackElo "2480"]
[TimeControl "180+1"]
[EndTime "14:09:15 PDT"]
[Termination "as9killer2 won by checkmate"]

1. d4 {[%clk 0:03:00.9]} 1... d5 {[%clk 0:03:00]} 2. c4 {[%clk 0:02:59.8]} 2...
e6 {[%clk 0:03:00.1]} 3. Nf3 {[%clk 0:02:59.8]} 3... a6 {[%clk 0:02:59.9]} 4.
cxd5 {[%clk 0:02:59]} 4... exd5 {[%clk 0:03:00.1]} 5. Nc3 {[%clk 0:02:59.9]}
5... Nf6 {[%clk 0:03:00.1]} 6. Bg5 {[%clk 0:02:58.2]} 6... Be6 {[%clk
0:03:00.2]} 7. Bxf6 {[%clk 0:02:57.9]} 7... Qxf6 {[%clk 0:02:59.6]} 8. Qb3
{[%clk 0:02:58.8]} 8... Ra7 {[%clk 0:02:58.9]} 9. g3 {[%clk 0:02:58.3]} 9... Qd8
{[%clk 0:02:56.9]} 10. h4 {[%clk 0:02:58.3]} 10... h6 {[%clk 0:02:56]} 11. Bh3
{[%clk 0:02:58.1]} 11... Bxh3 {[%clk 0:02:53.9]} 12. Rxh3 {[%clk 0:02:59]} 12...
c6 {[%clk 0:02:53.6]} 13. e4 {[%clk 0:02:57.7]} 13... dxe4 {[%clk 0:02:50.6]}
14. Ne5 {[%clk 0:02:57.9]} 14... Qc7 {[%clk 0:02:39.3]} 15. Nxe4 {[%clk
0:02:49.6]} 15... c5 {[%clk 0:02:26.6]} 16. O-O-O {[%clk 0:02:22.8]} 16... cxd4+
{[%clk 0:02:20]} 17. Qc4 {[%clk 0:02:19.7]} 17... Qxc4+ {[%clk 0:02:09.5]} 18.
Nxc4 {[%clk 0:02:19.9]} 18... Nc6 {[%clk 0:02:08.8]} 19. Rhh1 {[%clk 0:02:15.9]}
19... Be7 {[%clk 0:02:01.7]} 20. Ned6+ {[%clk 0:02:13]} 20... Kf8 {[%clk
0:01:55.9]} 21. Nc8 {[%clk 0:02:03]} 21... Ra8 {[%clk 0:01:54.9]} 22. N4b6
{[%clk 0:02:03.6]} 22... Rxc8 {[%clk 0:01:47.7]} 23. Nxc8 {[%clk 0:02:03.7]}
23... Bc5 {[%clk 0:01:48]} 24. Rhe1 {[%clk 0:02:02.1]} 24... g6 {[%clk
0:01:43.5]} 25. Kb1 {[%clk 0:01:34.5]} 25... Kg7 {[%clk 0:01:38.1]} 26. Rc1
{[%clk 0:01:34.1]} 26... Bb4 {[%clk 0:01:38.5]} 27. Nb6 {[%clk 0:01:33.7]} 27...
Bxe1 {[%clk 0:01:37.5]} 28. Rxe1 {[%clk 0:01:34.6]} 28... Rd8 {[%clk 0:01:35.4]}
29. Nc4 {[%clk 0:01:34.8]} 29... b5 {[%clk 0:01:31.7]} 30. Nd2 {[%clk
0:01:34.8]} 30... Nb4 {[%clk 0:01:29.9]} 31. Re2 {[%clk 0:01:25.4]} 31... Rc8
{[%clk 0:01:16.4]} 32. a3 {[%clk 0:01:18.1]} 32... Nd3 {[%clk 0:01:15.9]} 33.
Nb3 {[%clk 0:01:17.5]} 33... Rd8 {[%clk 0:01:04.8]} 34. Rd2 {[%clk 0:01:17.1]}
34... Ne5 {[%clk 0:01:04.8]} 35. Rxd4 {[%clk 0:01:06.8]} 35... Rxd4 {[%clk
0:01:02.7]} 36. Nxd4 {[%clk 0:01:07.7]} 36... Ng4 {[%clk 0:01:03.1]} 37. f4
{[%clk 0:01:08.2]} 37... Ne3 {[%clk 0:00:57.9]} 38. Kc1 {[%clk 0:01:01.1]} 38...
h5 {[%clk 0:00:57.2]} 39. Ne2 {[%clk 0:00:56.1]} 39... Kf6 {[%clk 0:00:56.1]}
40. Kd2 {[%clk 0:00:55.8]} 40... Nf5 {[%clk 0:00:56.6]} 41. Kd3 {[%clk
0:00:54.6]} 41... Ke6 {[%clk 0:00:57]} 42. Ke4 {[%clk 0:00:54.4]} 42... Kd6
{[%clk 0:00:56.4]} 43. b4 {[%clk 0:00:50.8]} 43... f6 {[%clk 0:00:55.1]} 44. Kf3
{[%clk 0:00:28.1]} 44... Kd5 {[%clk 0:00:55.2]} 45. g4 {[%clk 0:00:20.1]} 45...
hxg4+ {[%clk 0:00:48.3]} 46. Kxg4 {[%clk 0:00:21]} 46... Ne3+ {[%clk 0:00:46.8]}
47. Kf3 {[%clk 0:00:21.2]} 47... Nc2 {[%clk 0:00:47.3]} 48. f5 {[%clk
0:00:20.2]} 48... gxf5 {[%clk 0:00:46.9]} 49. h5 {[%clk 0:00:20.7]} 49... Ke6
{[%clk 0:00:47.4]} 50. h6 {[%clk 0:00:19]} 50... Kf7 {[%clk 0:00:47.7]} 51. Nf4
{[%clk 0:00:14.7]} 51... Nxa3 {[%clk 0:00:45.9]} 52. Nd5 {[%clk 0:00:12.6]}
52... Kg6 {[%clk 0:00:42.9]} 53. Kf4 {[%clk 0:00:13.1]} 53... Nc2 {[%clk
0:00:41.5]} 54. h7 {[%clk 0:00:13.6]} 54... Kxh7 {[%clk 0:00:40.6]} 55. Kxf5
{[%clk 0:00:14.3]} 55... Kg7 {[%clk 0:00:40.7]} 56. Ke6 {[%clk 0:00:13.1]} 56...
Nd4+ {[%clk 0:00:37.8]} 57. Kd6 {[%clk 0:00:13.2]} 57... Kf7 {[%clk 0:00:30.7]}
58. Kc5 {[%clk 0:00:12.6]} 58... Nc2 {[%clk 0:00:30.4]} 59. Nc7 {[%clk
0:00:11.9]} 59... f5 {[%clk 0:00:29.8]} 60. Nd5 {[%clk 0:00:06.9]} 60... Ke6
{[%clk 0:00:28.3]} 61. Nf4+ {[%clk 0:00:07.1]} 61... Ke5 {[%clk 0:00:28.3]} 62.
Nd3+ {[%clk 0:00:04.1]} 62... Ke4 {[%clk 0:00:28.5]} 63. Nf2+ {[%clk 0:00:04.7]}
63... Ke3 {[%clk 0:00:28.3]} 64. Nd1+ {[%clk 0:00:05.1]} 64... Kd2 {[%clk
0:00:27.8]} 65. Nf2 {[%clk 0:00:05.7]} 65... Kc3 {[%clk 0:00:27.6]} 66. Nd1+
{[%clk 0:00:03.4]} 66... Kb3 {[%clk 0:00:27.9]} 67. Kb6 {[%clk 0:00:03.5]} 67...
Nxb4 {[%clk 0:00:28.2]} 68. Ka5 {[%clk 0:00:03.6]} 68... f4 {[%clk 0:00:27.4]}
69. Nf2 {[%clk 0:00:04.1]} 69... f3 {[%clk 0:00:27.4]} 70. Ne4 {[%clk
0:00:04.8]} 70... Ka3 {[%clk 0:00:18.8]} 71. Kb6 {[%clk 0:00:02.8]} 71... Nd5+
{[%clk 0:00:15.9]} 72. Kxa6 {[%clk 0:00:03]} 72... b4 {[%clk 0:00:16.4]} 73. Kb5
{[%clk 0:00:03.2]} 73... b3 {[%clk 0:00:16.7]} 74. Kc4 {[%clk 0:00:03.9]} 74...
Nb6+ {[%clk 0:00:14.8]} 75. Kc3 {[%clk 0:00:04.1]} 75... b2 {[%clk 0:00:15.1]}
76. Kc2 {[%clk 0:00:04.1]} 76... Ka2 {[%clk 0:00:13.8]} 77. Nc3+ {[%clk
0:00:04.6]} 77... Ka1 {[%clk 0:00:14.2]} 78. Kd2 {[%clk 0:00:05.5]} 78... Nd5
{[%clk 0:00:11.3]} 79. Nxd5 {[%clk 0:00:03.7]} 79... b1=Q {[%clk 0:00:11.6]} 80.
Ke3 {[%clk 0:00:02.2]} 80... Qb3+ {[%clk 0:00:09.4]} 81. Nc3 {[%clk 0:00:02.3]}
81... Qxc3+ {[%clk 0:00:09.6]} 82. Kf2 {[%clk 0:00:03]} 82... Qd3 {[%clk
0:00:09.5]} 83. Kg1 {[%clk 0:00:02.9]} 83... Qe2 {[%clk 0:00:09.1]} 84. Kh1
{[%clk 0:00:03.8]} 84... Qg2# {[%clk 0:00:09.5]} 0-1

[Event "Late-Titled-Tuesday-Blitz-October-03-2023"]
[Site "Chess.com"]
[Date "2023.10.03"]
[Round "2"]
[White "FaustinoOro"]
[Black "Chessdreamer2020"]
[Result "1-0"]
[WhiteElo "2878"]
[BlackElo "2547"]
[TimeControl "180+1"]
[EndTime "14:10:21 PDT"]
[Termination "FaustinoOro won by resignation"]

1. e4 {[%clk 0:03:00.5]} 1... d6 {[%clk 0:02:58.8]} 2. d4 {[%clk 0:03:00.5]}
2... Nf6 {[%clk 0:02:58.8]} 3. Nc3 {[%clk 0:03:00.6]} 3... c6 {[%clk 0:02:59.3]}
4. Nf3 {[%clk 0:02:58.2]} 4... Bg4 {[%clk 0:02:58.8]} 5. h3 {[%clk 0:02:57]}
5... Bxf3 {[%clk 0:02:58.7]} 6. Qxf3 {[%clk 0:02:57.9]} 6... e6 {[%clk
0:02:59.5]} 7. Bd3 {[%clk 0:02:56.1]} 7... d5 {[%clk 0:02:59.8]} 8. exd5 {[%clk
0:02:51.3]} 8... cxd5 {[%clk 0:02:59.4]} 9. O-O {[%clk 0:02:51.6]} 9... Nc6
{[%clk 0:02:59.1]} 10. Ne2 {[%clk 0:02:51.8]} 10... Be7 {[%clk 0:02:57.1]} 11.
c3 {[%clk 0:02:52]} 11... O-O {[%clk 0:02:57.4]} 12. Re1 {[%clk 0:02:51.8]}
12... a6 {[%clk 0:02:56.4]} 13. a4 {[%clk 0:02:49.3]} 1-0

[Event "Late-Titled-Tuesday-Blitz-October-03-2023"]
[Site "Chess.com"]
[Date "2023.10.03"]
[Round "2"]
[White "Joel1285"]
[Black "Qvalda"]
[Result "0-1"]
[WhiteElo "1907"]
[BlackElo "2385"]
[TimeControl "180+1"]
[EndTime "14:11:18 PDT"]
[Termination "Qvalda won by resignation"]

1. d4 {[%clk 0:02:53.5]} 1... e6 {[%clk 0:02:58.9]} 2. c4 {[%clk 0:02:54.4]}
2... Nf6 {[%clk 0:02:58.4]} 3. Nf3 {[%clk 0:02:54.2]} 3... b6 {[%clk 0:02:58.3]}
4. a3 {[%clk 0:02:54.4]} 4... Bb7 {[%clk 0:02:57.4]} 5. Nc3 {[%clk 0:02:55]}
5... d5 {[%clk 0:02:55.2]} 6. cxd5 {[%clk 0:02:55.9]} 6... Nxd5 {[%clk
0:02:54.4]} 7. Bd2 {[%clk 0:02:55.2]} 7... c5 {[%clk 0:02:50.1]} 8. Nxd5 {[%clk
0:02:52.9]} 8... Bxd5 {[%clk 0:02:48]} 9. dxc5 {[%clk 0:02:53.8]} 9... Bxc5
{[%clk 0:02:47.3]} 10. Bc3 {[%clk 0:02:54.3]} 10... O-O {[%clk 0:02:45.8]} 11.
e3 {[%clk 0:02:54.6]} 11... Nc6 {[%clk 0:02:43.1]} 12. Be2 {[%clk 0:02:54.8]}
12... Qc7 {[%clk 0:02:39.7]} 13. Rc1 {[%clk 0:02:52.4]} 13... Rad8 {[%clk
0:02:34.9]} 14. b4 {[%clk 0:02:41.8]} 14... Be7 {[%clk 0:02:32.1]} 15. b5 {[%clk
0:02:40.3]} 15... Bxf3 {[%clk 0:02:26.6]} 0-1

[Event "Late-Titled-Tuesday-Blitz-October-03-2023"]
[Site "Chess.com"]
[Date "2023.10.03"]
[Round "2"]
[White "AyMitecK"]
[Black "KaydenTroffChess"]
[Result "1-0"]
[WhiteElo "2548"]
[BlackElo "2751"]
[TimeControl "180+1"]
[EndTime "14:11:20 PDT"]
[Termination "AyMitecK won by checkmate"]

1. e4 {[%clk 0:03:00.9]} 1... c5 {[%clk 0:02:59.5]} 2. Nf3 {[%clk 0:03:01.2]}
2... g6 {[%clk 0:02:59.4]} 3. d4 {[%clk 0:03:00.5]} 3... cxd4 {[%clk 0:03:00.3]}
4. Qxd4 {[%clk 0:03:01]} 4... Nf6 {[%clk 0:03:00.4]} 5. Bb5 {[%clk 0:03:01.6]}
5... a6 {[%clk 0:02:59.6]} 6. e5 {[%clk 0:03:01.8]} 6... axb5 {[%clk 0:02:59.9]}
7. exf6 {[%clk 0:03:02.2]} 7... Nc6 {[%clk 0:02:59.9]} 8. Qd3 {[%clk 0:03:02.9]}
8... e6 {[%clk 0:02:51.5]} 9. O-O {[%clk 0:03:03.2]} 9... b4 {[%clk 0:02:49.7]}
10. Nbd2 {[%clk 0:03:02.3]} 10... d5 {[%clk 0:02:40.7]} 11. Re1 {[%clk
0:03:02.7]} 11... Qxf6 {[%clk 0:02:23.5]} 12. Qxd5 {[%clk 0:03:02.3]} 12... Bg7
{[%clk 0:02:22.5]} 13. Ne4 {[%clk 0:03:01.5]} 13... exd5 {[%clk 0:01:59.3]} 14.
Nxf6+ {[%clk 0:03:00.8]} 14... Kf8 {[%clk 0:01:53]} 15. Re8# {[%clk 0:02:57.7]}
1-0

[Event "Late-Titled-Tuesday-Blitz-October-03-2023"]
[Site "Chess.com"]
[Date "2023.10.03"]
[Round "2"]
[White "Sacbutt"]
[Black "adricalderon8"]
[Result "0-1"]
[WhiteElo "2246"]
[BlackElo "2492"]
[TimeControl "180+1"]
[EndTime "14:11:28 PDT"]
[Termination "adricalderon8 won by resignation"]

1. e4 {[%clk 0:03:00.9]} 1... c5 {[%clk 0:02:59.8]} 2. Nf3 {[%clk 0:03:01]} 2...
d6 {[%clk 0:02:59.6]} 3. d4 {[%clk 0:03:01.5]} 3... cxd4 {[%clk 0:03:00.5]} 4.
Nxd4 {[%clk 0:03:01.3]} 4... Nf6 {[%clk 0:03:00.2]} 5. Nc3 {[%clk 0:03:02]} 5...
Nc6 {[%clk 0:02:59.1]} 6. Be3 {[%clk 0:02:59.9]} 6... Ng4 {[%clk 0:02:56.5]} 7.
Bc1 {[%clk 0:02:52.5]} 7... Qb6 {[%clk 0:02:55.4]} 8. Nce2 {[%clk 0:02:50.1]}
8... e5 {[%clk 0:02:54.3]} 9. Nxc6 {[%clk 0:02:40.6]} 9... Qxf2+ {[%clk
0:02:53.7]} 10. Kd2 {[%clk 0:02:41.1]} 10... bxc6 {[%clk 0:02:50]} 11. c3 {[%clk
0:02:38.9]} 11... Qe3+ {[%clk 0:02:45.3]} 12. Kc2 {[%clk 0:02:35.5]} 12... Qxe4+
{[%clk 0:02:45.5]} 13. Kb3 {[%clk 0:02:32.3]} 13... Be6+ {[%clk 0:02:43.8]} 14.
Ka3 {[%clk 0:02:29.1]} 14... d5+ {[%clk 0:02:38.5]} 15. b4 {[%clk 0:02:27.3]}
15... a5 {[%clk 0:02:37.3]} 16. Ng3 {[%clk 0:02:23]} 16... axb4+ {[%clk
0:02:37.4]} 17. Kb2 {[%clk 0:02:21.4]} 17... bxc3+ {[%clk 0:02:37.8]} 18. Kxc3
{[%clk 0:02:15.3]} 0-1

[Event "Late-Titled-Tuesday-Blitz-October-03-2023"]
[Site "Chess.com"]
[Date "2023.10.03"]
[Round "2"]
[White "Gameking51"]
[Black "GM_dmitrij"]
[Result "0-1"]
[WhiteElo "2614"]
[BlackElo "3054"]
[TimeControl "180+1"]
[EndTime "14:12:14 PDT"]
[Termination "GM_dmitrij won by resignation"]

1. e4 {[%clk 0:03:00.9]} 1... c6 {[%clk 0:02:57.5]} 2. d4 {[%clk 0:03:00]} 2...
d5 {[%clk 0:02:58.4]} 3. exd5 {[%clk 0:02:54.9]} 3... cxd5 {[%clk 0:02:59.3]} 4.
Nf3 {[%clk 0:02:53]} 4... Nc6 {[%clk 0:02:57.8]} 5. c4 {[%clk 0:02:39.5]} 5...
Nf6 {[%clk 0:02:56.9]} 6. Nc3 {[%clk 0:02:38.2]} 6... a6 {[%clk 0:02:57.3]} 7.
Ne5 {[%clk 0:02:24.6]} 7... e6 {[%clk 0:02:46.4]} 8. Nxc6 {[%clk 0:02:13.4]}
8... bxc6 {[%clk 0:02:47.3]} 9. Bd3 {[%clk 0:02:13.8]} 9... Bd6 {[%clk
0:02:38.2]} 10. O-O {[%clk 0:02:13.4]} 10... O-O {[%clk 0:02:37.7]} 11. Bg5
{[%clk 0:02:08.7]} 11... h6 {[%clk 0:02:35.4]} 12. Bh4 {[%clk 0:02:08.4]} 12...
a5 {[%clk 0:02:35.1]} 13. Rc1 {[%clk 0:02:06.1]} 13... Bb7 {[%clk 0:02:00.7]}
14. Re1 {[%clk 0:02:00.6]} 14... dxc4 {[%clk 0:01:58.6]} 15. Bxc4 {[%clk
0:02:00.3]} 15... Be7 {[%clk 0:01:56.9]} 0-1